[Event "Titled Tuesday Blitz June 14 Late 2022"]
[White "Kamsky, Gata"]
[Black "Martinez Alcantara, Jose Eduardo"]
[WhiteFideId "2000024"]
[BlackFideId "3805662"]
[WhiteElo "2645"]
[BlackElo "2703"]
[Result "0-1"]
[Round "06"]
[TimeControl "180+1"]
[Date "2022.06.14"]
[WhiteClock "0:00:01"]
[BlackClock "0:00:06"]

1. e4 {[%clk 0:03:00]}  c5 {[%clk 0:02:59]} 2. Nf3 {[%clk 0:03:00]}  d6 {[%clk 0:03:00]} 3. Bb5+ {[%clk 0:02:59]}  Nd7 {[%clk 0:03:01]} 4. a4 {[%clk 0:02:58]}  Nf6 {[%clk 0:03:01]} 5. Nc3 {[%clk 0:02:58]}  e6 {[%clk 0:03:01]} 6. O-O {[%clk 0:02:57]}  a6 {[%clk 0:03:01]} 7. Be2 {[%clk 0:02:55]}  b6 {[%clk 0:03:00]} 8. d4 {[%clk 0:02:51]}  cxd4 {[%clk 0:03:01]} 9. Qxd4 {[%clk 0:02:18]}  Bb7 {[%clk 0:03:00]} 10. Bg5 {[%clk 0:02:16]}  Qc7 {[%clk 0:02:58]} 11. Rad1 {[%clk 0:02:12]}  Be7 {[%clk 0:02:58]} 12. Rfe1 {[%clk 0:02:09]}  O-O {[%clk 0:02:48]} 13. Bh4 {[%clk 0:02:08]}  Ne5 {[%clk 0:02:39]} 14. Bg3 {[%clk 0:02:01]}  Nfd7 {[%clk 0:02:06]} 15. Nxe5 {[%clk 0:01:49]}  Nxe5 {[%clk 0:02:07]} 16. Kh1 {[%clk 0:01:34]}  Rad8 {[%clk 0:01:54]} 17. f4 {[%clk 0:01:34]}  Nc6 {[%clk 0:01:55]} 18. Qc4 {[%clk 0:01:29]}  Qc8 {[%clk 0:01:50]} 19. Bf2 {[%clk 0:01:27]}  Na5 {[%clk 0:01:30]} 20. Qb4 {[%clk 0:01:22]}  Nc6 {[%clk 0:01:23]} 21. Qxb6 {[%clk 0:01:19]}  Rd7 {[%clk 0:01:24]} 22. Qe3 {[%clk 0:01:11]}  Nb4 {[%clk 0:01:22]} 23. Rd2 {[%clk 0:01:04]}  d5 {[%clk 0:01:22]} 24. exd5 {[%clk 0:00:53]}  Bxd5 {[%clk 0:01:01]} 25. Nxd5 {[%clk 0:00:50]}  Rxd5 {[%clk 0:01:00]} 26. Rxd5 {[%clk 0:00:43]}  Nxd5 {[%clk 0:01:00]} 27. Qe4 {[%clk 0:00:40]}  Bf6 {[%clk 0:00:52]} 28. c3 {[%clk 0:00:39]}  Qb8 {[%clk 0:00:51]} 29. Bd3 {[%clk 0:00:36]}  g6 {[%clk 0:00:50]} 30. Bxa6 {[%clk 0:00:28]}  Qxb2 {[%clk 0:00:49]} 31. Kg1 {[%clk 0:00:24]}  Nxc3 {[%clk 0:00:47]} 32. Qc4 {[%clk 0:00:23]}  Nd5 {[%clk 0:00:32]} 33. Bb5 {[%clk 0:00:19]}  Qd2 {[%clk 0:00:29]} 34. g3 {[%clk 0:00:19]}  Rd8 {[%clk 0:00:28]} 35. Qe2 {[%clk 0:00:18]}  Qb4 {[%clk 0:00:28]} 36. Qc4 {[%clk 0:00:17]}  Qd2 {[%clk 0:00:28]} 37. Qe2 {[%clk 0:00:17]}  Qa5 {[%clk 0:00:29]} 38. Qf3 {[%clk 0:00:16]}  Bd4 {[%clk 0:00:27]} 39. Rd1 {[%clk 0:00:16]}  Bxf2+ {[%clk 0:00:26]} 40. Qxf2 {[%clk 0:00:16]}  Qb4 {[%clk 0:00:25]} 41. Qd4 {[%clk 0:00:16]}  Qa3 {[%clk 0:00:18]} 42. Qf2 {[%clk 0:00:12]}  Rc8 {[%clk 0:00:17]} 43. Qd2 {[%clk 0:00:11]}  Qc5+ {[%clk 0:00:17]} 44. Qf2 {[%clk 0:00:11]}  Qb4 {[%clk 0:00:16]} 45. Qd2 {[%clk 0:00:10]}  Rc3 {[%clk 0:00:16]} 46. Qf2 {[%clk 0:00:05]}  Qb3 {[%clk 0:00:15]} 47. Re1 {[%clk 0:00:05]}  Ne3 {[%clk 0:00:14]} 48. Qe2 {[%clk 0:00:04]}  Qb4 {[%clk 0:00:09]} 49. Qf2 {[%clk 0:00:03]}  Ng4 {[%clk 0:00:07]} 50. Qe2 {[%clk 0:00:02]}  Qc5+ {[%clk 0:00:07]} 51. Kh1 {[%clk 0:00:02]}  h5 {[%clk 0:00:07]} 52. Qd2 {[%clk 0:00:01]}  Kh7 {[%clk 0:00:06]} 0-1


[Site "https://www.chess.com"]

[Event "Titled Tuesday Blitz June 14 Late 2022"]
[White "Korchmar, Vasiliy"]
[Black "Ibarra Jerez, Jose Carlos"]
[WhiteFideId "24131750"]
[BlackFideId "2226332"]
[WhiteElo "2370"]
[BlackElo "2628"]
[Result "0-1"]
[Round "06"]
[TimeControl "180+1"]
[Date "2022.06.14"]
[WhiteClock "0:00:04"]
[BlackClock "0:00:18"]

1. e4 {[%clk 0:03:00]}  Nc6 {[%clk 0:02:58]} 2. Nf3 {[%clk 0:02:54]}  d6 {[%clk 0:02:58]} 3. d4 {[%clk 0:02:52]}  Nf6 {[%clk 0:02:58]} 4. Bd3 {[%clk 0:02:51]}  Nb4 {[%clk 0:02:55]} 5. O-O {[%clk 0:02:37]}  Nxd3 {[%clk 0:02:55]} 6. Qxd3 {[%clk 0:02:38]}  g6 {[%clk 0:02:55]} 7. Bg5 {[%clk 0:02:19]}  Bg7 {[%clk 0:02:54]} 8. Nbd2 {[%clk 0:02:17]}  O-O {[%clk 0:02:54]} 9. Rfe1 {[%clk 0:02:17]}  c6 {[%clk 0:02:51]} 10. c3 {[%clk 0:02:16]}  h6 {[%clk 0:02:48]} 11. Bh4 {[%clk 0:02:15]}  Nh5 {[%clk 0:02:45]} 12. Bg3 {[%clk 0:02:15]}  Nxg3 {[%clk 0:02:40]} 13. hxg3 {[%clk 0:02:16]}  Qc7 {[%clk 0:02:13]} 14. a4 {[%clk 0:02:16]}  e5 {[%clk 0:02:07]} 15. a5 {[%clk 0:02:09]}  Re8 {[%clk 0:01:59]} 16. Nc4 {[%clk 0:01:59]}  exd4 {[%clk 0:01:53]} 17. cxd4 {[%clk 0:01:54]}  Bg4 {[%clk 0:01:38]} 18. e5 {[%clk 0:01:39]}  dxe5 {[%clk 0:01:35]} 19. Nfxe5 {[%clk 0:01:29]}  Be6 {[%clk 0:01:34]} 20. b4 {[%clk 0:01:10]}  Rad8 {[%clk 0:01:34]} 21. Rad1 {[%clk 0:01:07]}  Bxc4 {[%clk 0:01:16]} 22. Qxc4 {[%clk 0:00:57]}  Bxe5 {[%clk 0:01:15]} 23. dxe5 {[%clk 0:00:58]}  Rxd1 {[%clk 0:01:15]} 24. Rxd1 {[%clk 0:00:59]}  Rxe5 {[%clk 0:01:14]} 25. Qd4 {[%clk 0:00:50]}  Rd5 {[%clk 0:01:09]} 26. Qa1 {[%clk 0:00:47]}  Rxd1+ {[%clk 0:00:50]} 27. Qxd1 {[%clk 0:00:48]}  b6 {[%clk 0:00:49]} 28. a6 {[%clk 0:00:47]}  c5 {[%clk 0:00:34]} 29. Qd5 {[%clk 0:00:20]}  cxb4 {[%clk 0:00:22]} 30. Qb7 {[%clk 0:00:20]}  Qc1+ {[%clk 0:00:23]} 31. Kh2 {[%clk 0:00:19]}  b3 {[%clk 0:00:23]} 32. Qxa7 {[%clk 0:00:18]}  b2 {[%clk 0:00:23]} 33. Qb8+ {[%clk 0:00:09]}  Kh7 {[%clk 0:00:23]} 34. Qb7 {[%clk 0:00:07]}  Kg7 {[%clk 0:00:19]} 35. a7 {[%clk 0:00:04]}  b1=Q {[%clk 0:00:19]} 36. g4 {[%clk 0:00:04]}  Qf4+ {[%clk 0:00:18]} 37. g3 {[%clk 0:00:04]}  Qxf2+ {[%clk 0:00:18]} 38. Kh3 {[%clk 0:00:04]}  Qbf1+ {[%clk 0:00:18]} 0-1


[Site "https://www.chess.com"]

[Event "Titled Tuesday Blitz June 14 Late 2022"]
[White "Kosteniuk, Alexandra"]
[Black "Swiercz, Dariusz"]
[WhiteFideId "4128125"]
[BlackFideId "1126881"]
[WhiteElo "2469"]
[BlackElo "2627"]
[Result "1-0"]
[Round "06"]
[TimeControl "180+1"]
[Date "2022.06.14"]
[WhiteClock "0:00:21"]
[BlackClock "0:00:04"]

1. e4 {[%clk 0:03:00]}  c5 {[%clk 0:03:00]} 2. c3 {[%clk 0:03:00]}  d5 {[%clk 0:02:58]} 3. exd5 {[%clk 0:03:00]}  Qxd5 {[%clk 0:02:58]} 4. d4 {[%clk 0:02:59]}  g6 {[%clk 0:02:57]} 5. Nf3 {[%clk 0:02:58]}  Bg7 {[%clk 0:02:57]} 6. Nbd2 {[%clk 0:02:58]}  cxd4 {[%clk 0:02:50]} 7. Bc4 {[%clk 0:02:58]}  Qd8 {[%clk 0:02:48]} 8. Nxd4 {[%clk 0:02:56]}  Nf6 {[%clk 0:02:48]} 9. O-O {[%clk 0:02:54]}  O-O {[%clk 0:02:49]} 10. N2f3 {[%clk 0:02:54]}  Qc7 {[%clk 0:02:45]} 11. Qe2 {[%clk 0:02:54]}  Nc6 {[%clk 0:02:27]} 12. Re1 {[%clk 0:02:40]}  Bg4 {[%clk 0:01:59]} 13. Nb5 {[%clk 0:02:33]}  Qc8 {[%clk 0:01:47]} 14. h3 {[%clk 0:02:15]}  Bxf3 {[%clk 0:01:42]} 15. Qxf3 {[%clk 0:02:16]}  a6 {[%clk 0:01:38]} 16. Na3 {[%clk 0:02:16]}  Nd7 {[%clk 0:01:29]} 17. Bb3 {[%clk 0:02:12]}  Nde5 {[%clk 0:01:11]} 18. Qg3 {[%clk 0:02:08]}  Rd8 {[%clk 0:01:04]} 19. Bg5 {[%clk 0:02:00]}  Rd3 {[%clk 0:00:57]} 20. Re3 {[%clk 0:01:56]}  Rxe3 {[%clk 0:00:55]} 21. Qxe3 {[%clk 0:01:56]}  Qf5 {[%clk 0:00:47]} 22. Rd1 {[%clk 0:01:52]}  Rd8 {[%clk 0:00:05]} 23. Rxd8+ {[%clk 0:01:50]}  Nxd8 {[%clk 0:00:06]} 24. Bxe7 {[%clk 0:01:49]}  Ndc6 {[%clk 0:00:07]} 25. Bg5 {[%clk 0:01:38]}  b5 {[%clk 0:00:07]} 26. Bf4 {[%clk 0:01:22]}  h5 {[%clk 0:00:06]} 27. Nc2 {[%clk 0:01:12]}  Qd7 {[%clk 0:00:04]} 28. Nd4 {[%clk 0:01:09]}  Nxd4 {[%clk 0:00:04]} 29. cxd4 {[%clk 0:01:09]}  Nc6 {[%clk 0:00:02]} 30. d5 {[%clk 0:01:01]}  Nd4 {[%clk 0:00:02]} 31. d6 {[%clk 0:00:59]}  Nxb3 {[%clk 0:00:02]} 32. Qxb3 {[%clk 0:00:57]}  Bf8 {[%clk 0:00:01]} 33. Qd5 {[%clk 0:00:55]}  Kh7 {[%clk 0:00:01]} 34. h4 {[%clk 0:00:44]}  a5 {[%clk 0:00:01]} 35. g3 {[%clk 0:00:43]}  a4 {[%clk 0:00:02]} 36. b3 {[%clk 0:00:41]}  axb3 {[%clk 0:00:02]} 37. axb3 {[%clk 0:00:41]}  Kg8 {[%clk 0:00:02]} 38. Kg2 {[%clk 0:00:41]}  Kh7 {[%clk 0:00:02]} 39. Be5 {[%clk 0:00:40]}  Bh6 {[%clk 0:00:02]} 40. Bd4 {[%clk 0:00:36]}  Bg7 {[%clk 0:00:02]} 41. Bxg7 {[%clk 0:00:35]}  Kxg7 {[%clk 0:00:03]} 42. Qe5+ {[%clk 0:00:34]}  Kg8 {[%clk 0:00:03]} 43. Qd5 {[%clk 0:00:33]}  Kf8 {[%clk 0:00:03]} 44. b4 {[%clk 0:00:31]}  Ke8 {[%clk 0:00:02]} 45. Qa8+ {[%clk 0:00:30]}  Qd8 {[%clk 0:00:02]} 46. Qe4+ {[%clk 0:00:20]}  Kd7 {[%clk 0:00:02]} 47. Qd5 {[%clk 0:00:21]}  Ke8 {[%clk 0:00:01]} 48. Qxb5+ {[%clk 0:00:21]}  Kf8 {[%clk 0:00:02]} 49. Qd5 {[%clk 0:00:21]}  Qb6 {[%clk 0:00:02]} 50. b5 {[%clk 0:00:20]}  Ke8 {[%clk 0:00:02]} 51. Qc6+ {[%clk 0:00:20]}  Qxc6+ {[%clk 0:00:03]} 52. bxc6 {[%clk 0:00:20]}  Kd8 {[%clk 0:00:03]} 53. Kf3 {[%clk 0:00:21]}  f6 {[%clk 0:00:04]} 54. Ke4 {[%clk 0:00:21]} 1-0


[Site "https://www.chess.com"]

[Event "Titled Tuesday Blitz June 14 Late 2022"]
[White "Kovacevic, Radmila"]
[Black "Novikova, Galina"]
[WhiteFideId "933171"]
[BlackFideId "4157095"]
[WhiteElo "2115"]
[BlackElo "1863"]
[Result "0-1"]
[Round "06"]
[TimeControl "180+1"]
[Date "2022.06.15"]
[WhiteClock "0:00:15"]
[BlackClock "0:00:14"]

1. e3 {[%clk 0:03:00]}  e6 {[%clk 0:02:57]} 2. b3 {[%clk 0:03:01]}  f5 {[%clk 0:02:57]} 3. Bb2 {[%clk 0:03:02]}  Nf6 {[%clk 0:02:58]} 4. f4 {[%clk 0:03:01]}  Be7 {[%clk 0:02:55]} 5. Nf3 {[%clk 0:03:02]}  O-O {[%clk 0:02:55]} 6. Be2 {[%clk 0:02:54]}  d6 {[%clk 0:02:55]} 7. O-O {[%clk 0:02:54]}  Nc6 {[%clk 0:02:55]} 8. Nd4 {[%clk 0:02:50]}  Nxd4 {[%clk 0:02:54]} 9. exd4 {[%clk 0:02:50]}  b6 {[%clk 0:02:48]} 10. Bf3 {[%clk 0:02:49]}  Rb8 {[%clk 0:02:47]} 11. Qe2 {[%clk 0:02:49]}  Kh8 {[%clk 0:02:46]} 12. Re1 {[%clk 0:02:44]}  Qe8 {[%clk 0:02:45]} 13. Na3 {[%clk 0:02:38]}  Qg6 {[%clk 0:02:43]} 14. Nb5 {[%clk 0:02:21]}  Qh6 {[%clk 0:02:43]} 15. Nxa7 {[%clk 0:02:17]}  Qxf4 {[%clk 0:02:42]} 16. Nxc8 {[%clk 0:02:15]}  Rbxc8 {[%clk 0:02:42]} 17. Qxe6 {[%clk 0:02:14]}  Rce8 {[%clk 0:02:43]} 18. Bc6 {[%clk 0:02:05]}  Ng4 {[%clk 0:02:37]} 19. h3 {[%clk 0:01:43]}  Bh4 {[%clk 0:01:38]} 20. Qxe8 {[%clk 0:01:35]}  Bf2+ {[%clk 0:01:30]} 21. Kf1 {[%clk 0:01:27]}  Be3+ {[%clk 0:01:14]} 22. Bf3 {[%clk 0:01:10]}  Rxe8 {[%clk 0:01:03]} 23. hxg4 {[%clk 0:00:54]}  fxg4 {[%clk 0:01:01]} 24. dxe3 {[%clk 0:00:50]}  Qf7 {[%clk 0:00:57]} 25. Kf2 {[%clk 0:00:47]}  gxf3 {[%clk 0:00:58]} 26. gxf3 {[%clk 0:00:48]}  Rf8 {[%clk 0:00:58]} 27. f4 {[%clk 0:00:48]}  d5 {[%clk 0:00:59]} 28. Rg1 {[%clk 0:00:47]}  Re8 {[%clk 0:00:52]} 29. Rae1 {[%clk 0:00:45]}  Qf5 {[%clk 0:00:47]} 30. Re2 {[%clk 0:00:43]}  h6 {[%clk 0:00:45]} 31. Bc1 {[%clk 0:00:42]}  Re6 {[%clk 0:00:38]} 32. Rg3 {[%clk 0:00:41]}  Rg6 {[%clk 0:00:38]} 33. Rxg6 {[%clk 0:00:40]}  Qxg6 {[%clk 0:00:39]} 34. c4 {[%clk 0:00:40]}  c6 {[%clk 0:00:37]} 35. Bd2 {[%clk 0:00:36]}  h5 {[%clk 0:00:37]} 36. cxd5 {[%clk 0:00:34]}  cxd5 {[%clk 0:00:38]} 37. e4 {[%clk 0:00:34]}  dxe4 {[%clk 0:00:36]} 38. d5 {[%clk 0:00:31]}  h4 {[%clk 0:00:35]} 39. Ke3 {[%clk 0:00:31]}  h3 {[%clk 0:00:28]} 40. Be1 {[%clk 0:00:26]}  Qg1+ {[%clk 0:00:23]} 41. Bf2 {[%clk 0:00:23]}  Qc1+ {[%clk 0:00:19]} 42. Kxe4 {[%clk 0:00:23]}  h2 {[%clk 0:00:20]} 43. Be3 {[%clk 0:00:20]}  h1=Q+ {[%clk 0:00:19]} 44. Ke5 {[%clk 0:00:20]}  Qc3+ {[%clk 0:00:17]} 45. Ke6 {[%clk 0:00:16]}  Qf6+ {[%clk 0:00:17]} 46. Kd7 {[%clk 0:00:16]}  Qxd5+ {[%clk 0:00:17]} 47. Kc8 {[%clk 0:00:15]}  Qdc6+ {[%clk 0:00:17]} 48. Kb8 {[%clk 0:00:15]}  Qf8+ {[%clk 0:00:14]} 49. Ka7 {[%clk 0:00:15]}  Qe7+ {[%clk 0:00:15]} 50. Ka6 {[%clk 0:00:15]}  Qeb7# {[%clk 0:00:14]} 0-1


[Site "https://www.chess.com"]

[Event "Titled Tuesday Blitz June 14 Late 2022"]
[White "Mickiewicz, Piotr"]
[Black "Lonoff, Marc"]
[WhiteFideId "1114891"]
[BlackFideId "2001349"]
[WhiteElo "2209"]
[BlackElo "2189"]
[Result "0-1"]
[Round "06"]
[TimeControl "180+1"]
[Date "2022.06.15"]
[WhiteClock "0:00:06"]
[BlackClock "0:00:26"]

1. e4 {[%clk 0:03:00]}  e6 {[%clk 0:02:59]} 2. d3 {[%clk 0:02:59]}  d5 {[%clk 0:02:57]} 3. Nd2 {[%clk 0:03:00]}  Nf6 {[%clk 0:02:55]} 4. g3 {[%clk 0:02:59]}  Nc6 {[%clk 0:02:53]} 5. Ngf3 {[%clk 0:02:47]}  dxe4 {[%clk 0:02:45]} 6. dxe4 {[%clk 0:02:47]}  e5 {[%clk 0:02:45]} 7. Bg2 {[%clk 0:02:41]}  Bc5 {[%clk 0:02:43]} 8. O-O {[%clk 0:02:39]}  O-O {[%clk 0:02:43]} 9. Qe2 {[%clk 0:02:12]}  Bg4 {[%clk 0:02:40]} 10. Nb3 {[%clk 0:02:10]}  Bb6 {[%clk 0:02:39]} 11. h3 {[%clk 0:02:07]}  Bxf3 {[%clk 0:02:32]} 12. Bxf3 {[%clk 0:02:03]}  Nd4 {[%clk 0:02:26]} 13. Nxd4 {[%clk 0:02:01]}  Bxd4 {[%clk 0:02:20]} 14. c3 {[%clk 0:01:59]}  Bb6 {[%clk 0:02:20]} 15. a4 {[%clk 0:01:42]}  a5 {[%clk 0:02:17]} 16. Be3 {[%clk 0:01:42]}  Bxe3 {[%clk 0:02:14]} 17. Qxe3 {[%clk 0:01:42]}  Qe7 {[%clk 0:02:08]} 18. Rfd1 {[%clk 0:01:41]}  b6 {[%clk 0:02:06]} 19. Be2 {[%clk 0:01:39]}  Rfd8 {[%clk 0:01:59]} 20. Bc4 {[%clk 0:01:37]}  Rxd1+ {[%clk 0:01:55]} 21. Rxd1 {[%clk 0:01:38]}  Rd8 {[%clk 0:01:55]} 22. Rd3 {[%clk 0:01:32]}  Rxd3 {[%clk 0:01:44]} 23. Qxd3 {[%clk 0:01:33]}  Qd7 {[%clk 0:01:43]} 24. Qxd7 {[%clk 0:01:27]}  Nxd7 {[%clk 0:01:43]} 25. b4 {[%clk 0:01:27]}  Kf8 {[%clk 0:01:41]} 26. Kf1 {[%clk 0:01:24]}  Ke7 {[%clk 0:01:40]} 27. Ke2 {[%clk 0:01:24]}  f6 {[%clk 0:01:39]} 28. h4 {[%clk 0:01:22]}  c5 {[%clk 0:01:38]} 29. bxa5 {[%clk 0:01:13]}  bxa5 {[%clk 0:01:36]} 30. Bb5 {[%clk 0:01:12]}  Nb6 {[%clk 0:01:36]} 31. Ke3 {[%clk 0:01:11]}  Kd6 {[%clk 0:01:32]} 32. f4 {[%clk 0:01:10]}  h6 {[%clk 0:01:18]} 33. Kf3 {[%clk 0:01:08]}  Ke6 {[%clk 0:01:17]} 34. Kg4 {[%clk 0:01:08]}  Kf7 {[%clk 0:01:16]} 35. Kh5 {[%clk 0:01:05]}  exf4 {[%clk 0:01:07]} 36. gxf4 {[%clk 0:01:04]}  Nc8 {[%clk 0:00:53]} 37. Bc4+ {[%clk 0:01:02]}  Kf8 {[%clk 0:00:53]} 38. e5 {[%clk 0:00:58]}  fxe5 {[%clk 0:00:49]} 39. fxe5 {[%clk 0:00:57]}  Ne7 {[%clk 0:00:49]} 40. e6 {[%clk 0:00:44]}  Nc6 {[%clk 0:00:48]} 41. Bb3 {[%clk 0:00:30]}  Ne5 {[%clk 0:00:47]} 42. Bd5 {[%clk 0:00:30]}  Ke7 {[%clk 0:00:46]} 43. Ba2 {[%clk 0:00:06]}  c4 {[%clk 0:00:43]} 44. Bxc4 {[%clk 0:00:06]}  Nxc4 {[%clk 0:00:41]} 45. Kg6 {[%clk 0:00:07]}  Kf8 {[%clk 0:00:37]} 46. e7+ {[%clk 0:00:06]}  Kxe7 {[%clk 0:00:37]} 47. Kxg7 {[%clk 0:00:07]}  h5 {[%clk 0:00:35]} 48. Kg6 {[%clk 0:00:07]}  Nb6 {[%clk 0:00:34]} 49. Kxh5 {[%clk 0:00:08]}  Kf6 {[%clk 0:00:32]} 50. Kg4 {[%clk 0:00:07]}  Nxa4 {[%clk 0:00:32]} 51. c4 {[%clk 0:00:07]}  Nc5 {[%clk 0:00:32]} 52. Kf4 {[%clk 0:00:04]}  a4 {[%clk 0:00:32]} 53. Ke3 {[%clk 0:00:03]}  Kg6 {[%clk 0:00:32]} 54. Kd4 {[%clk 0:00:04]}  Kh5 {[%clk 0:00:30]} 55. Kc3 {[%clk 0:00:03]}  Kxh4 {[%clk 0:00:29]} 56. Kb4 {[%clk 0:00:03]}  Kg4 {[%clk 0:00:29]} 57. Kxc5 {[%clk 0:00:03]}  a3 {[%clk 0:00:29]} 58. Kd6 {[%clk 0:00:03]}  a2 {[%clk 0:00:29]} 59. c5 {[%clk 0:00:04]}  a1=Q {[%clk 0:00:29]} 60. c6 {[%clk 0:00:05]}  Qa8 {[%clk 0:00:29]} 61. c7 {[%clk 0:00:06]}  Qc8 {[%clk 0:00:29]} 62. Kc6 {[%clk 0:00:06]}  Kf5 {[%clk 0:00:29]} 63. Kb6 {[%clk 0:00:06]}  Ke6 {[%clk 0:00:28]} 64. Kc6 {[%clk 0:00:05]}  Ke7 {[%clk 0:00:27]} 65. Kb6 {[%clk 0:00:04]}  Kd7 {[%clk 0:00:27]} 66. Ka7 {[%clk 0:00:05]}  Qxc7+ {[%clk 0:00:27]} 67. Ka8 {[%clk 0:00:06]}  Qc2 {[%clk 0:00:26]} 0-1


[Site "https://www.chess.com"]

[Event "Titled Tuesday Blitz June 14 Late 2022"]
[White "Murthy, Pappu"]
[Black "Zhou, Qiyu"]
[WhiteFideId "2013401"]
[BlackFideId "505161"]
[WhiteElo "2015"]
[BlackElo "1925"]
[Result "0-1"]
[Round "06"]
[TimeControl "180+1"]
[Date "2022.06.15"]
[WhiteClock "0:00:11"]
[BlackClock "0:00:08"]

1. c4 {[%clk 0:03:00]}  e5 {[%clk 0:02:59]} 2. Nc3 {[%clk 0:03:00]}  Nc6 {[%clk 0:03:00]} 3. Nf3 {[%clk 0:03:00]}  Nf6 {[%clk 0:02:59]} 4. g3 {[%clk 0:03:00]}  d5 {[%clk 0:02:59]} 5. cxd5 {[%clk 0:03:00]}  Nxd5 {[%clk 0:03:00]} 6. Bg2 {[%clk 0:03:00]}  Be6 {[%clk 0:03:01]} 7. O-O {[%clk 0:03:00]}  Nb6 {[%clk 0:02:59]} 8. b3 {[%clk 0:02:56]}  Be7 {[%clk 0:02:59]} 9. Bb2 {[%clk 0:02:56]}  O-O {[%clk 0:02:59]} 10. Nb5 {[%clk 0:02:55]}  f6 {[%clk 0:02:57]} 11. d4 {[%clk 0:02:54]}  a6 {[%clk 0:02:45]} 12. Na3 {[%clk 0:02:39]}  e4 {[%clk 0:02:40]} 13. Nd2 {[%clk 0:02:22]}  f5 {[%clk 0:02:38]} 14. e3 {[%clk 0:02:22]}  Nb4 {[%clk 0:02:33]} 15. Ndc4 {[%clk 0:02:18]}  Nd3 {[%clk 0:02:24]} 16. Bc3 {[%clk 0:02:07]}  Nd5 {[%clk 0:02:18]} 17. Bd2 {[%clk 0:02:03]}  b5 {[%clk 0:02:08]} 18. Ne5 {[%clk 0:01:48]}  Bxa3 {[%clk 0:02:06]} 19. Nxd3 {[%clk 0:01:45]}  exd3 {[%clk 0:02:05]} 20. e4 {[%clk 0:01:34]}  fxe4 {[%clk 0:02:03]} 21. Bxe4 {[%clk 0:01:35]}  c6 {[%clk 0:01:50]} 22. Bxd3 {[%clk 0:01:30]}  Be7 {[%clk 0:01:45]} 23. Qc2 {[%clk 0:01:24]}  Qd7 {[%clk 0:01:23]} 24. Bxh7+ {[%clk 0:01:19]}  Kh8 {[%clk 0:01:22]} 25. Bg6 {[%clk 0:01:11]}  Bf5 {[%clk 0:01:16]} 26. Bxf5 {[%clk 0:01:10]}  Rxf5 {[%clk 0:01:17]} 27. Be3 {[%clk 0:01:04]}  Raf8 {[%clk 0:01:16]} 28. Rac1 {[%clk 0:00:59]}  Nxe3 {[%clk 0:01:14]} 29. fxe3 {[%clk 0:00:59]}  Rxf1+ {[%clk 0:01:12]} 30. Rxf1 {[%clk 0:01:00]}  Rxf1+ {[%clk 0:01:11]} 31. Kxf1 {[%clk 0:01:00]}  Qe6 {[%clk 0:01:11]} 32. e4 {[%clk 0:00:53]}  Qf6+ {[%clk 0:01:09]} 33. Kg2 {[%clk 0:00:43]}  Qxd4 {[%clk 0:01:03]} 34. Qe2 {[%clk 0:00:44]}  Qe5 {[%clk 0:00:58]} 35. Qg4 {[%clk 0:00:42]}  Qb2+ {[%clk 0:00:44]} 36. Kh3 {[%clk 0:00:40]}  Qf6 {[%clk 0:00:45]} 37. Kg2 {[%clk 0:00:39]}  c5 {[%clk 0:00:35]} 38. Qc8+ {[%clk 0:00:38]}  Kh7 {[%clk 0:00:34]} 39. Qh3+ {[%clk 0:00:37]}  Kg8 {[%clk 0:00:35]} 40. Qc8+ {[%clk 0:00:36]}  Kf7 {[%clk 0:00:35]} 41. Qb7 {[%clk 0:00:29]}  Qe6 {[%clk 0:00:22]} 42. h4 {[%clk 0:00:26]}  c4 {[%clk 0:00:22]} 43. bxc4 {[%clk 0:00:24]}  bxc4 {[%clk 0:00:23]} 44. Qb2 {[%clk 0:00:18]}  Qf6 {[%clk 0:00:19]} 45. Qe2 {[%clk 0:00:12]}  c3 {[%clk 0:00:18]} 46. Qh5+ {[%clk 0:00:12]}  Kg8 {[%clk 0:00:14]} 47. Qe8+ {[%clk 0:00:12]}  Bf8 {[%clk 0:00:13]} 48. Qc8 {[%clk 0:00:10]}  Qd4 {[%clk 0:00:11]} 49. Qe6+ {[%clk 0:00:08]}  Kh8 {[%clk 0:00:09]} 50. Qf7 {[%clk 0:00:08]}  Qf6 {[%clk 0:00:05]} 51. Qh5+ {[%clk 0:00:07]}  Qh6 {[%clk 0:00:05]} 52. Qd5 {[%clk 0:00:07]}  c2 {[%clk 0:00:05]} 53. Qc4 {[%clk 0:00:07]}  c1=Q {[%clk 0:00:05]} 54. Qxc1 {[%clk 0:00:06]}  Qxc1 {[%clk 0:00:06]} 55. Kh3 {[%clk 0:00:07]}  Qb2 {[%clk 0:00:06]} 56. h5 {[%clk 0:00:08]}  Qxa2 {[%clk 0:00:07]} 57. Kh4 {[%clk 0:00:09]}  Qf7 {[%clk 0:00:07]} 58. g4 {[%clk 0:00:10]}  Be7+ {[%clk 0:00:07]} 59. Kg3 {[%clk 0:00:10]}  Qb3+ {[%clk 0:00:07]} 60. Kf4 {[%clk 0:00:09]}  Bf6 {[%clk 0:00:07]} 61. g5 {[%clk 0:00:09]}  Qb8+ {[%clk 0:00:06]} 62. Kf5 {[%clk 0:00:09]}  Qe5+ {[%clk 0:00:05]} 63. Kg6 {[%clk 0:00:07]}  Qxg5+ {[%clk 0:00:06]} 64. Kf7 {[%clk 0:00:07]}  Qxh5+ {[%clk 0:00:06]} 65. Ke6 {[%clk 0:00:07]}  a5 {[%clk 0:00:06]} 66. e5 {[%clk 0:00:08]}  Qxe5+ {[%clk 0:00:05]} 67. Kf7 {[%clk 0:00:09]}  Qe7+ {[%clk 0:00:05]} 68. Kg6 {[%clk 0:00:08]}  Bc3 {[%clk 0:00:06]} 69. Kf5 {[%clk 0:00:09]}  Qe5+ {[%clk 0:00:05]} 70. Kg4 {[%clk 0:00:09]}  a4 {[%clk 0:00:06]} 71. Kf3 {[%clk 0:00:08]}  a3 {[%clk 0:00:06]} 72. Kg2 {[%clk 0:00:09]}  a2 {[%clk 0:00:07]} 73. Kf3 {[%clk 0:00:10]}  a1=Q {[%clk 0:00:06]} 74. Kg2 {[%clk 0:00:11]}  Qa4 {[%clk 0:00:06]} 75. Kf3 {[%clk 0:00:11]}  Ba5 {[%clk 0:00:06]} 76. Kg2 {[%clk 0:00:12]}  Qc3 {[%clk 0:00:06]} 77. Kf2 {[%clk 0:00:12]}  Qa2+ {[%clk 0:00:07]} 78. Kf1 {[%clk 0:00:11]}  Qca1# {[%clk 0:00:08]} 0-1


[Site "https://www.chess.com"]